Cogmind - Beta 12 X3 @@@ ROGUE MODE // 2022.09.10 @ 22:37:35 Player: albenzo Result: Core destroyed Performance ------------- Evolutions (0) 0 Regions Visited (3) 600 Robots Destroyed (23) 115 Value Destroyed (637) 637 Prototype IDs (23) 460 Alien Tech Used (0) 0 Bonus (325) 325 TOTAL SCORE: 2137 Bonus ------- Follower Combat Kills 25 Aligned with FarCom 300 Cogmind --------- Core Integrity 0/250 Matter 300/300 Energy 125/250 System Corruption 0% Temperature Critical (511) Movement Core (950) Ox18 Location -10/Exiles Parts ------- > --- POWER (1) -------- Ion Engine > --- PROPULSION (2) --- (None) > --- UTILITY (2) ------ Heat Sink High-capacity Storage Unit > --- WEAPON (2) ------- Guided Plasma Cannon > --- INVENTORY (20) --- Ion Engine Light Treads Aluminum Leg Aluminum Leg Aluminum Leg Heat Sink Medium Storage Unit Large Storage Unit Large Storage Unit Structural Scanner Sensor Array Signal Interpreter Improved Terrain Scanner Seismic Detector Seismic Detector Small Laser Small Laser Grenade Launcher Hammer Hammer Peak State ------------ > --- POWER ------------ Ion Engine > --- PROPULSION ------- Light Treads Light Treads > --- UTILITY ---------- Heat Sink High-capacity Storage Unit > --- WEAPON ----------- Beam Cannon Guided Plasma Cannon > --- INVENTORY -------- Ion Engine Light Treads Aluminum Leg Aluminum Leg Aluminum Leg Heat Sink Medium Storage Unit Large Storage Unit Large Storage Unit Structural Scanner Sensor Array Signal Interpreter Improved Terrain Scanner Seismic Detector Seismic Detector Small Laser Small Laser Grenade Launcher Hammer Hammer [Rating: 16] Favorites ----------- Power Ion Engine Engine Ion Engine Power Core Light Nuclear Core Propulsion Light Treads Treads Light Treads Utility High-capacity Storage Unit Device Seismic Detector Storage High-capacity Storage Unit Weapon Medium Laser Energy Gun Medium Laser Energy Cannon Beam Cannon Ballistic Gun Assault Rifle Launcher Grenade Launcher Build | -11 -10 -10 -10 ------- Run | Scr Mat Min Exi Slots Evolved . | . . . . Power . | . . . . Propulsion . | . . . . Utility . | . . . . Weapon . | . . . . Parts Attached 24 | 7 11 5 1 Power 5 | 1 2 2 . Engine 4 | 1 2 1 . Core 1 | . . 1 . Reactor . | . . . . Propulsion 5 | 2 2 1 . Treads 5 | 2 2 1 . Leg . | . . . . Wheel . | . . . . Hover . | . . . . Flight . | . . . . Utility 5 | 2 2 1 . Device 2 | 1 . 1 . Storage 3 | 1 2 . . Processor . | . . . . Hackware . | . . . . Protection . | . . . . Artifact . | . . . . Weapon 9 | 2 5 1 1 Energy Gun 4 | 1 3 . . Energy Cannon 3 | . 1 1 1 Ballistic Gun 1 | 1 . . . Ballistic Cannon . | . . . . Launcher 1 | . 1 . . Special Weapon . | . . . . Impact Weapon . | . . . . Slashing Weapon . | . . . . Piercing Weapon . | . . . . Special Melee Weapon . | . . . . Unidentified Prototypes . | . . . . Parts Lost 4 | . . 1 3 Power 1 | . . 1 . Propulsion 2 | . . . 2 Utility . | . . . . Weapon 1 | . . . 1 Highest Loss Streak 3 | . . 1 3 To Critical Strikes . | . . . . Average Slot Usage (%) 99 | . 99 100 99 Engine 12 | . 14 7 14 Core 1 | . . 6 . Treads 27 | . 27 28 27 Device 14 | . 14 14 14 Storage 14 | . 14 14 14 Energy Gun 16 | . 18 17 11 Energy Cannon 10 | . 8 10 15 Naked Turns . | . . . . Heaviest Build 59 | 15 51 51 59 Greatest Support 40 | 40 40 40 40 Greatest Overweight (x) 1 | 1 1 1 1 Average Overweight (x) . | . . 1 1 Largest Inventory Capacity 20 | 8 20 20 20 Average Capacity 17 | 7 17 20 20 Most Carried 20 | 7 20 20 20 Average Carried 16 | 3 14 19 20 Final Capacity 20 | 8 20 20 20 Final Carried 20 | 7 20 20 20 Class Distribution -------------------- 100% | Mutant Dominant Class ---------------- Mutant | -10/Materials Mutant | -10/Mines Mutant | -10/Exiles Resources | -11 -10 -10 -10 ----------- Run | Scr Mat Min Exi Matter Collected 445 | 246 137 62 . Remotely . | . . . . Salvage Created 797 | 59 371 225 142 Parts 44 | 8 23 6 7 Haulers Intercepted . | . . . . Recyclers Shooed . | . . . . Parts Field Recycled . | . . . . Retrieved Matter . | . . . . Parts Self-Destructed . | . . . . Prevented . | . . . . Kills | -11 -10 -10 -10 ------- Run | Scr Mat Min Exi Combat Hostiles Destroyed 20 | . 10 6 4 Guns 8 | . 5 3 . Cannons 10 | . 3 3 4 AOE 2 | . 2 . . Classes Destroyed 5 | 1 3 1 . Tunneler 3 | 3 . . . Watcher 1 | . 1 . . Swarmer 3 | . 3 . . Grunt 16 | . 7 5 4 Assembled 1 | . . 1 . Best Kill Streak 4 | 2 3 4 4 Combat Bots Only 4 | . 3 4 4 Max Kills in Single Turn 1 | 1 1 1 1 Gunslinging . | . . . . Exploded 1 | . 1 . . Melee . | . . . . Uniques/NPCs Destroyed . | . . . . Combat | -11 -10 -10 -10 -------- Run | Scr Mat Min Exi Damage Taken 1162 | . 382 254 526 Core 278 | . 97 34 147 Absorbed by Shields . | . . . . Regen/Repaired (Parts) 43 | . 43 . . Core Remaining (%) 100 | 100 . . . Volleys Fired 75 | 17 31 19 8 Largest 2 | 1 2 2 1 Hottest 120 | 50 110 110 120 Shots Fired 123 | 17 60 38 8 Gun 83 | 17 43 23 . Cannon 38 | . 15 15 8 Launcher 2 | . 2 . . Special . | . . . . Kinetic . | . . . . Thermal 121 | 17 58 38 8 Explosive 2 | . 2 . . Electromagnetic . | . . . . Robot Hit Streak 16 | 3 16 8 11 Robot Miss Streak 3 | 1 2 3 . Penetration Max . | . . . . Secondary Targets . | . . . . Shots Hit Robots 87 | 11 45 23 8 Core Hits 36 | 3 19 10 4 Critical Kills . | . . . . Critical Parts Destroyed . | . . . . Critical Strikes 4 | 1 2 1 . Burn 4 | 1 2 1 . Melee Attacks . | . . . . Impact . | . . . . Slashing . | . . . . Piercing . | . . . . Sneak Attacks . | . . . . Combat Hostiles . | . . . . Follow-up Attacks . | . . . . Damage Inflicted 1484 | 138 718 343 285 Guns 726 | 138 437 151 . Cannons 634 | . 157 192 285 Explosions 124 | . 124 . . Melee . | . . . . Ramming . | . . . . Kinetic . | . . . . Thermal 1360 | 138 594 343 285 Explosive 124 | . 124 . . Electromagnetic . | . . . . Impact . | . . . . Slashing . | . . . . Piercing . | . . . . Highest Corruption . | . . . . Average Corruption . | . . . . Corruption Purged . | . . . . Corruption Blocked . | . . . . Overload Shots . | . . . . Overflow Damage 2 | . 2 . . Projectiles . | . . . . Explosions 2 | . 2 . . Melee . | . . . . Knockbacks . | . . . . Impact . | . . . . Kinetic . | . . . . Secondary . | . . . . Self-Inflicted Damage 18 | . 18 . . Shots 1 | . 1 . . Rammed . | . . . . Targets Rammed . | . . . . Kicked . | . . . . Crushed . | . . . . Highest Temperature 511 | 50 282 147 511 Average Temperature 93 | 18 113 61 269 Received Heat Transfer 405 | . 186 183 36 Effects 5 | . 1 . 4 Shutdowns 1 | . . . 1 Energy Bleed 2 | . 1 . 1 Short Circuit 1 | . . . 1 Damage (core) 1 | . . . 1 Siege Activations . | . . . . Robots Corrupted . | . . . . Combat Hostiles . | . . . . Parts Fried . | . . . . Impact Corruptions . | . . . . Robots Melted . | . . . . Combat Hostiles . | . . . . Parts Melted 6 | . 3 3 . Heat Transferred 3727 | 481 1693 913 640 Parts Sabotaged . | . . . . Parts Stolen . | . . . . Parts Stripped . | . . . . Power Chain Reactions . | . . . . Missiles Intercepted . | . . . . Alert | -11 -10 -10 -10 ------- Run | Scr Mat Min Exi Peak Influence 153 | 15 153 95 . Initial 42 | . 9 42 . Average 51 | 6 50 65 . Maximum Alert Level . | . . . . Low Security (%) 100 | 100 100 100 . Level 1 . | . . . . Level 2 . | . . . . Level 3 . | . . . . Level 4 . | . . . . Level 5 . | . . . . High Security . | . . . . Max Security . | . . . . Squads Dispatched 1 | . 1 . . Investigation . | . . . . Extermination . | . . . . Reinforcement 1 | . 1 . . Assault . | . . . . Garrison . | . . . . Intercept . | . . . . Searches Triggered . | . . . . Construction Impeded . | . . . . Haulers Reinforced . | . . . . Active Scanning Responses . | . . . . Cargo Convoy Interrupts . | . . . . Stealth | -11 -10 -10 -10 --------- Run | Scr Mat Min Exi Distress Signals 1 | . 1 . . Communications Jammed . | . . . . Distress Signals . | . . . . Times Spotted 32 | . 16 7 9 Peak Tracking Total 10 | . 3 4 10 Tactical Retreats 1 | . 1 . . Traps | -11 -10 -10 -10 ------- Run | Scr Mat Min Exi Traps Triggered . | . . . . Indirectly . | . . . . Trap Hack Attempts . | . . . . Triggered . | . . . . Disarmed . | . . . . Reprogrammed . | . . . . Reused . | . . . . Traps Extracted . | . . . . Installed . | . . . . Triggered . | . . . . Machines | -11 -10 -10 -10 ---------- Run | Scr Mat Min Exi Machines Disabled . | . . . . Max in Single Turn . | . . . . Machines Sabotaged . | . . . . Overloaded Fab Kills . | . . . . Hacking | -11 -10 -10 -10 --------- Run | Scr Mat Min Exi Machines Accessed 9 | . 5 . 4 Terminals 4 | . 4 . . Fabricators . | . . . . Repair Stations 1 | . 1 . . Recycling Units . | . . . . Scanalyzers . | . . . . Garrison Access . | . . . . Total Hacks 18 | . 13 . 5 Successful 12 | . 7 . 5 Failed 6 | . 6 . . Catastrophic . | . . . . Database Lockouts . | . . . . Manual 11 | . 10 . 1 Terminals 11 | . 11 . . Fabricators . | . . . . Repair Stations 2 | . 2 . . Recycling Units . | . . . . Scanalyzers . | . . . . Garrison Access . | . . . . Terminal Hacks 10 | . 5 . 5 Record 4 | . . . 4 Part Schematic 2 | . 2 . . Branch Access Points 1 | . 1 . . Patrol Status 1 | . 1 . . Registered Components 1 | . 1 . . EX-Prototype ID Bank 1 | . . . 1 Fabricator Hacks . | . . . . Repair Station Hacks 2 | . 2 . . Scan Component 1 | . 1 . . Repair 1 | . 1 . . Recycling Unit Hacks . | . . . . Scanalyzer . | . . . . Garrison Access Hacks . | . . . . Unauthorized Hacks . | . . . . Terminals . | . . . . Fabricators . | . . . . Repair Stations . | . . . . Recycling Units . | . . . . Scanalyzers . | . . . . Garrison Access . | . . . . Data Cores Recovered . | . . . . Used . | . . . . Hacking Detections 4 | . 4 . . Full Trace Events 1 | . 1 . . Feedback Events . | . . . . Feedback Blocked . | . . . . Robot Schematics Acquired . | . . . . Robots Built . | . . . . Authchips . | . . . . Time . | . . . . Total Robot Build Rating . | . . . . Part Schematics Acquired 2 | . 2 . . Parts Built . | . . . . Authchips . | . . . . Time . | . . . . Total Part Build Rating . | . . . . Parts Repaired 1 | . 1 . . Time 26 | . 26 . . Parts Recycled . | . . . . Recycled Matter . | . . . . Retrieved Matter . | . . . . Retrieved Components . | . . . . Parts Scanalyzed . | . . . . Part Schematics Acquired . | . . . . Parts Damaged . | . . . . Bothacking | -11 -10 -10 -10 ------------ Run | Scr Mat Min Exi Used RIF Installer . | . . . . Robots Hacked . | . . . . Non-combat . | . . . . Combat . | . . . . Robot Hacks Applied . | . . . . Relay Couplers Released . | . . . . Fabnet Peak Effective % . | . . . . Robots Rewired . | . . . . Allies Hacked . | . . . . Hacks Repelled . | . . . . Allies | -11 -10 -10 -10 -------- Run | Scr Mat Min Exi Total Allies 1 | . . 1 . Largest Group 1 | . . 1 . Highest-Rated Group 31 | . . 31 . Highest-Rated Ally 31 | . . 31 . Total Orders . | . . . . Ally Attacks 8 | . . 8 . Total Damage 124 | . . 124 . Kills 1 | . . 1 . Allies Corrupted . | . . . . Allies Melted . | . . . . Intel | -11 -10 -10 -10 ------- Run | Scr Mat Min Exi Robot Analysis Total . | . . . . Derelict Logs Recovered 1 | . . 1 . Drone Launches . | . . . . Drone Recoveries . | . . . . Exploration | -11 -10 -10 -10 ------------- Run | Scr Mat Min Exi Turns Passed 2998 | 169 1557 703 569 Spaces Moved 1083 | 77 515 261 230 Core 5 | 5 . . . Treads 1078 | 72 515 261 230 Legs . | . . . . Wheels . | . . . . Hover . | . . . . Flight . | . . . . Fastest Speed 50 | 50 160 240 240 Average Speed 221 | 154 212 240 240 Slowest Speed 240 | 160 240 240 240 Overloaded Moves . | . . . . Propulsion Burnouts . | . . . . Robots Hopped . | . . . . Cave-ins Triggered . | . . . . Exploration Rate (%) 44 | 6 79 52 42 Regions Visited 3 Branch Regions 2 Pre-discovered Areas . | . . . . Known Exits Taken 1 | . 1 . . Unknown Exits Taken 2 | 1 . 1 . Scrap Searched 1 | . . 1 . Spaces Dug . | . . . . Terrain Destroyed 9 | . 9 . . Melee . | . . . . Projectile . | . . . . AOE 9 | . 9 . . Terrain Rammed . | . . . . Walls Destroyed . | . . . . Machines Disabled . | . . . . Actions | -11 -10 -10 -10 --------- Run | Scr Mat Min Exi Total 1567 | 107 918 302 240 Wait 350 | . 337 13 . Move 1080 | 76 514 260 230 Hop . | . . . . Pick Up 24 | 7 15 2 . Fast Attach 12 | 7 3 1 1 Attach 1 | . . 1 . Detach . | . . . . Swap 11 | . 8 3 . Drop 14 | . 10 3 1 Fire 75 | 17 31 19 8 Melee . | . . . . Ram . | . . . . Kick . | . . . . Crush . | . . . . Escape Stasis . | . . . . Rewire . | . . . . Trap . | . . . . Miscellaneous . | . . . . Route ------- -11/Scrapyard -10/Materials (discovered 4 exits: [*Mat x2] / *Min x2) -10/Mines (discovered 2 exits: [*Mat] / *Exi) -10/Exiles History --------- Turn | Location | Event 14 | -11/Scrapyard | Discovered new exit (range 15) 170 | -11/Scrapyard | Entered Materials 315 | -10/Materials | Build established: Mutant 598 | -10/Materials | Identified exit to Mines 1125 | -10/Materials | Discovered new exit (range 15) 1264 | -10/Materials | Repaired Lgt. Treads 1497 | -10/Materials | Discovered new exit (range 8) 1727 | -10/Materials | Entered Mines 1775 | -10/Mines | Learned Materials interactive machine intel 1788 | -10/Mines | Received a Mining Laser from a helpful Derelict 1923 | -10/Mines | Discovered new exit (range 10) 2158 | -10/Mines | Excavation squad dispatched 2158 | -10/Mines | A large section of the Mines collapsed 2309 | -10/Mines | Core integrity fell below 50% 2421 | -10/Mines | Deemed a non-threat by the Exiles lab entrance 2421 | -10/Mines | Discovered new exit (range 5) 2430 | -10/Mines | Entered Exiles 2490 | -10/Exiles | Met 8R-AWN 2529 | -10/Exiles | Met EX-HEX 2613 | -10/Exiles | Met EX-BIN 2651 | -10/Exiles | Aligned with FarCom system 2654 | -10/Exiles | Given EX-Vault access code 2709 | -10/Exiles | Opened EX-Vault 2806 | -10/Exiles | Exiles lab attacked by MAIN.C 2911 | -10/Exiles | Found Gui. Plasma Cannon 2993 | -10/Exiles | Core integrity fell below 20% 3000 | -10/Exiles | Core destroyed Last Messages --------------- 02988_ Penetrated by Slug. 02990_ G-34 Mercenary destroyed. 02990_ Penetrated by Slug. 02992_ G-34 Mercenary destroyed. 02993_ Penetrated by Slug. 02995_ Slug penetrates G-34 Mercenary. 02995_ Penetrated by Slug. 02995_ Beam Cannon destroyed. 02996_ Overheating: Energy bleed (-24). 02996_ G-34 Mercenary destroyed. 02998_ Slug penetrates Wall. 02998_ Machine disabled. 02998_ Penetrated by Slug. 02998_ Lgt. Treads destroyed. 02999_ Power failure, Ion Engine shutdown. 02999_ Lgt. Treads broken. 02999_ Overheating: Short circuit. 02999_ Penetrated by Slug. 02999_ Broken Lgt. Treads destroyed. 03000_ Overheating: Core damaged (-35). Map ----- +----------------------------------------------------+ | ??????????????????????## #???????????????????? | | ???????????????????????# #???????????????????? | | ???????????????????????# #########???????????? | | ???????????????????????# ##""""""#???????????? | | ???????????????????????# ## """#???????????? | | ???????????????????????# X""#???????????? | | ???????????????????????# ## """#???????????? | | ???????????????######### ##""""""#???????????? | | ???????????????#""""""## #########???????????? | | ???????????????#"""" ## #???????????????????? | | ???????????????#""X" #???????????????????? | | ???????????????#" #???????????????????? | | ???????????????#" ## #???????????????????? | | ???????????????#""""""## #?#########?????????? | | ???????????????##"###### #?#"""""""#?????????? | | ??????????????? "?????# #?#"""""""#?????????? | | ??????????????"""??????# #?#"""""""#?????????? | | ??????????????"""?????## ###"" """"#?????????? | | ??????????????????????#" """"#?????????? | | ??????????????????????#" """#?????????? | | ??????????????????????#" """#?????????? | | ??????????????????????#" """#?????????? | | ??????????????????????#" """#?????????? | | ??????????????????????# """##????????? | | ??????????????????????## """""????????? | | ???????????????????????# @ """##????????? | | ???????????????????????# "X" """""????????? | | ???????????????????????# """ # ????????? | | ???????????????????????#" """""""""#?????????? | | ??????????????????????## ###########?????????? | | ?????????????????????##""g #???????????????????? | | ???????????????????###"" #???????????????????? | | ?????????????????""""""" ##??????????????????? | | ????????????????""" " "" ##???###########???? | | ????????????????""" " #####"""""""""##??? | | ??????????????" " h = " """ """"##?? | | ???????????? !%gb "" " #?? | | ???????????? % = " """#?? | | ???????????? * h " "#?? | | ????????????? !!%= " "##? | | ???????????? % [ ""## | | ????????????? """""" """ | | ????????????? ######""" " | | ?????????????? ""#?????#####""" | | ?????????????? """#??????????##""" | | ??????????????????????????????#"""" | | ??????????????????????????????#"" | | ??????????????????????????????"""" | | ?????????????????????????????? | | ???????????????????????????? | +----------------------------------------------------+ Best States ------------- Heat Dissipation 35 Energy Generation 14 Energy Capacity 250 Matter Stores 300 Matter Capacity 300 Sight Range 16 Terrain Scan Density 10 Evasion (%) 40 Recoil Reduction 2 Item Schematics ----------------- Flight Unit | -10/Materials | Hacked Lrg. Storage Unit | -10/Materials | Hacked Robot Schematics ------------------ None Fabricated ------------ Nothing Alien Tech Used ----------------- None Achievements -------------- None Challenges ------------ None Game ------ Seed SpacefoldCentriumWarhead Manual? 0 Play Time 00:16:56 Cumulative 65.3 hours Start 2022.09.10 @ 22:19:10 End 2022.09.10 @ 22:37:35 Sessions 1 Manual Loads 0 Difficulty Rogue Special Mode None Game No. 53 Rogue 53 Adventurer 0 Explorer 0 Win Type - Total 1 Types 1/0/0/0/0/0/0/0/0 Lore% 56 Gallery% 55 Achievement% 50 Wizard Run 0 Options --------- ASCII 0 Keyboard 1 Movement Vi Keybinds 0 Fullscreen 2 Font 24/Proggy Map View 76x50 Tactical HUD 1 Map Filters NONE Filters NONE Steam 1 RUN: 7875d2a9-9b22-4593-85c2-cb37765ef3ba